Cogmind - Beta 14 @@@ ROGUE MODE // 2024.11.28 @ 19:45:38 Player: mehbruh Result: Destroyed by YI-UF0 with YI-UF0's Doublenader Performance ------------- Evolutions (0) 0 Regions Visited (2) 400 Robots Destroyed (17) 85 Value Destroyed (335) 335 Prototype IDs (5) 100 Alien Tech Used (0) 0 Bonus (0) 0 TOTAL SCORE: 920 Bonus ------- None Cogmind --------- Core Integrity 0/250 Matter 234/300 Energy 99/100 System Corruption 0% Temperature Cool (0) Movement Core (50) Location -10/Mines Parts ------- > --- POWER (1) -------- (None) > --- PROPULSION (2) --- (None) > --- UTILITY (2) ------ (None) > --- WEAPON (2) ------- (None) > --- INVENTORY (5) ---- Light Treads Light Treads EM Pulse Gun Beamcaster Grenade Launcher Peak State ------------ > --- POWER ------------ Improved Ion Engine > --- PROPULSION ------- Light Treads Light Treads > --- UTILITY ---------- Large Storage Unit Seismic Detector > --- WEAPON ----------- Assault Rifle Heavy Assault Rifle > --- INVENTORY -------- Ion Engine Light Treads Light Treads Wheel Compact Wheel Heat Sink Light Armor Plating Light Armor Plating EM Pulse Gun Medium Laser Medium Laser Beamcaster Assault Rifle Assault Rifle Grenade Launcher [Rating: 10] Favorites ----------- Power Ion Engine Engine Ion Engine Propulsion Light Treads Treads Light Treads Utility Large Storage Unit Device Seismic Detector Storage Large Storage Unit Weapon Light Assault Rifle Ballistic Gun Light Assault Rifle Ballistic Cannon Light Cannon Build | -11 -10 -10 ------- Run | Yrd Mat Min Slots Evolved . | . . . Power . | . . . Propulsion . | . . . Utility . | . . . Weapon . | . . . Parts Attached 18 | 7 6 5 Power 2 | 1 . 1 Engine 2 | 1 . 1 Core . | . . . Reactor . | . . . Propulsion 4 | 2 2 . Treads 4 | 2 2 . Leg . | . . . Wheel . | . . . Hover . | . . . Flight . | . . . Utility 4 | 2 1 1 Device 2 | 1 . 1 Storage 2 | 1 1 . Processor . | . . . Hackware . | . . . Protection . | . . . Artifact . | . . . Weapon 8 | 2 3 3 Energy Gun . | . . . Energy Cannon . | . . . Ballistic Gun 7 | 2 3 2 Ballistic Cannon 1 | . . 1 Launcher . | . . . Special Weapon . | . . . Impact Weapon . | . . . Slashing Weapon . | . . . Piercing Weapon . | . . . Special Melee Weapon . | . . . Unidentified Prototypes . | . . . Parts Lost 4 | . 1 3 Power . | . . . Propulsion 2 | . 1 1 Utility 1 | . . 1 Weapon 1 | . . 1 Highest Loss Streak 3 | . 1 3 To Critical Strikes . | . . . Average Slot Usage (%) 98 | . 99 97 Engine 13 | . 14 13 Treads 27 | . 27 27 Device 13 | . 14 13 Storage 13 | . 14 13 Ballistic Gun 27 | . 27 25 Peak Build Rating 10 | 7 8 10 Average Rating 7 | 5 7 8 On Entrance 5 | . 7 8 Naked Turns 6 | . . 6 Heaviest Build 34 | 14 29 34 Greatest Support 40 | 40 40 40 Greatest Overweight (x) . | . . . Average Overweight (x) . | . . . Largest Inventory Capacity 15 | 8 15 15 Average Capacity 14 | 6 14 14 Most Carried 15 | 4 12 15 Average Carried 9 | 3 9 13 Final Capacity 15 | 8 15 5 Final Carried 12 | 4 12 5 Class Distribution -------------------- 96% | Mutant 3% | Scavenger-Mutant Dominant Class ---------------- Mutant | -10/Materials Mutant | -10/Mines Resources | -11 -10 -10 ----------- Run | Yrd Mat Min Matter Collected 549 | 286 211 52 Remotely . | . . . Salvage Created 663 | 137 515 11 Parts 40 | 10 29 1 Haulers Intercepted 2 | . 2 . Recyclers Shooed 3 | 1 2 . Parts Field Recycled . | . . . Retrieved Matter . | . . . Parts Self-Destructed . | . . . Prevented . | . . . Kills | -11 -10 -10 ------- Run | Yrd Mat Min Combat Hostiles Destroyed 9 | . 8 1 Guns 9 | . 8 1 Classes Destroyed 6 | 2 4 . Worker 1 | . 1 . Tunneler 3 | 3 . . Hauler 2 | . 2 . Recycler 2 | 1 1 . Swarmer 2 | . 1 1 Grunt 7 | . 7 . Best Kill Streak 4 | 4 3 1 Combat Bots Only 2 | . 2 1 Max Kills in Single Turn 1 | 1 1 1 Gunslinging . | . . . Exploded . | . . . Melee . | . . . Uniques/NPCs Destroyed . | . . . Combat | -11 -10 -10 -------- Run | Yrd Mat Min Hostile Shots Fired 71 | . 32 39 Missed 19 | . 5 14 Damage Taken 1061 | . 364 697 Core 256 | . 52 204 Absorbed by Shields . | . . . Regen/Repaired (Parts) 104 | . 104 . Core Remaining (%) 100 | 100 . . Volleys Fired 59 | 4 41 14 Largest 2 | 2 2 2 Hottest 58 | 40 40 58 Shots Fired 118 | 8 82 28 Gun 108 | 8 82 18 Cannon 10 | . . 10 Launcher . | . . . Special . | . . . Kinetic 118 | 8 82 28 Thermal . | . . . Explosive . | . . . Electromagnetic . | . . . Robot Hit Streak 10 | 6 9 10 Robot Miss Streak 3 | 1 3 3 Penetration Max . | . . . Secondary Targets . | . . . Shots Hit Robots 72 | 6 49 17 Core Hits 31 | 3 24 4 Critical Kills 1 | . 1 . Critical Parts Destroyed . | . . . Critical Strikes 1 | . 1 . Destroy 1 | . 1 . Melee Attacks . | . . . Impact . | . . . Slashing . | . . . Piercing . | . . . Sneak Attacks . | . . . Combat Hostiles . | . . . Follow-up Attacks . | . . . Damage Inflicted 871 | 61 595 215 Guns 772 | 61 537 174 Cannons 38 | . . 38 Explosions . | . . . Melee . | . . . Ramming 61 | . 58 3 Kinetic 810 | 61 537 212 Thermal . | . . . Explosive . | . . . Electromagnetic . | . . . Impact . | . . . Slashing . | . . . Piercing . | . . . Highest Corruption . | . . . Average Corruption . | . . . Corruption Purged . | . . . Corruption Blocked . | . . . Overload Shots . | . . . Overflow Damage . | . . . Projectiles . | . . . Explosions . | . . . Melee . | . . . Knockbacks 2 | . . 2 Impact . | . . . Kinetic 2 | . . 2 Secondary . | . . . Self-Inflicted Damage . | . . . Shots . | . . . Rammed 10 | . 8 2 Targets Rammed 12 | 1 9 2 Kicked . | . . . Crushed 2 | 1 1 . Highest Temperature 27 | . 18 27 Average Temperature 9 | . 8 15 Received Heat Transfer 231 | . 195 36 Siege Activations . | . . . Robots Corrupted . | . . . Combat Hostiles . | . . . Parts Fried . | . . . Impact Corruptions . | . . . Robots Melted . | . . . Combat Hostiles . | . . . Parts Melted . | . . . Heat Transferred . | . . . Parts Sabotaged . | . . . Parts Stolen . | . . . Parts Stripped . | . . . Power Chain Reactions . | . . . Alert | -11 -10 -10 ------- Run | Yrd Mat Min Peak Influence 127 | 20 127 77 Initial 17 | . 13 17 Average 54 | 7 66 27 Maximum Alert Level . | . . . Low Security (%) 100 | 100 100 100 Level 1 . | . . . Level 2 . | . . . Level 3 . | . . . Level 4 . | . . . Level 5 . | . . . High Security . | . . . Max Security . | . . . Squads Dispatched 1 | . 1 . Investigation 1 | . 1 . Extermination . | . . . Reinforcement . | . . . Assault . | . . . Garrison . | . . . Intercept . | . . . Searches Triggered . | . . . Construction Impeded . | . . . Haulers Reinforced . | . . . Active Scanning Responses . | . . . Cargo Convoy Interrupts . | . . . Stealth | -11 -10 -10 --------- Run | Yrd Mat Min Distress Signals 1 | . 1 . Communications Jammed . | . . . Distress Signals . | . . . Times Spotted 26 | . 19 7 Peak Tracking Total 5 | . 3 5 Tactical Retreats 3 | . 2 1 Traps | -11 -10 -10 ------- Run | Yrd Mat Min Traps Triggered 2 | . 2 . Indirectly . | . . . Trap Hack Attempts . | . . . Triggered . | . . . Disarmed . | . . . Reprogrammed . | . . . Reused . | . . . Traps Extracted . | . . . Installed . | . . . Triggered . | . . . Machines | -11 -10 -10 ---------- Run | Yrd Mat Min Machines Disabled . | . . . Max in Single Turn . | . . . Machines Repaired . | . . . Machines Dismantled . | . . . Machines Sabotaged . | . . . Overloaded Fab Kills . | . . . Hacking | -11 -10 -10 --------- Run | Yrd Mat Min Machines Accessed 8 | . 8 . Terminals 6 | . 6 . Fabricators . | . . . Repair Stations 1 | . 1 . Recycling Units 1 | . 1 . Scanalyzers . | . . . Garrison Access . | . . . Total Hacks 30 | . 30 . Successful 17 | . 17 . Failed 12 | . 12 . Catastrophic 3 | . 3 . Database Lockouts 1 | . 1 . Manual 22 | . 22 . Terminals 24 | . 24 . Fabricators . | . . . Repair Stations 4 | . 4 . Recycling Units 2 | . 2 . Scanalyzers . | . . . Garrison Access . | . . . Terminal Hacks 4 | . 4 . Part Schematic 1 | . 1 . Prototype ID Bank 2 | . 2 . Locate Traps 1 | . 1 . Fabricator Hacks . | . . . Repair Station Hacks 4 | . 4 . Scan Component 2 | . 2 . Repair 2 | . 2 . Recycling Unit Hacks . | . . . Scanalyzer . | . . . Garrison Access Hacks . | . . . Unauthorized Hacks 9 | . 9 . Terminals 8 | . 8 . Botnet 3 | . 3 . Skim 5 | . 5 . Fabricators . | . . . Repair Stations . | . . . Recycling Units 1 | . 1 . Reject 1 | . 1 . Scanalyzers . | . . . Garrison Access . | . . . Data Cores Recovered . | . . . Used . | . . . Hacking Detections 7 | . 7 . Full Trace Events . | . . . Feedback Events . | . . . Feedback Blocked . | . . . Robot Schematics Acquired . | . . . Robots Built . | . . . Authchips . | . . . Time . | . . . Total Robot Build Rating . | . . . Part Schematics Acquired 1 | . 1 . Parts Built . | . . . Authchips . | . . . Time . | . . . Total Part Build Rating . | . . . Parts Repaired 2 | . 2 . Time 52 | . 52 . Parts Recycled . | . . . Recycled Matter . | . . . Retrieved Matter . | . . . Retrieved Components . | . . . Parts Scanalyzed . | . . . Part Schematics Acquired . | . . . Parts Damaged . | . . . Bothacking | -11 -10 -10 ------------ Run | Yrd Mat Min Used RIF Installer . | . . . Robots Hacked . | . . . Non-combat . | . . . Combat . | . . . Robot Hacks Applied . | . . . Relay Couplers Released . | . . . Fabnet Peak Effective % . | . . . Robots Rewired . | . . . Allies Hacked . | . . . Hacks Repelled . | . . . Allies | -11 -10 -10 -------- Run | Yrd Mat Min Total Allies . | . . . Largest Group . | . . . Highest-Rated Group . | . . . Highest-Rated Ally . | . . . Total Orders . | . . . Ally Attacks . | . . . Total Damage . | . . . Kills . | . . . Allies Corrupted . | . . . Allies Melted . | . . . Intel | -11 -10 -10 ------- Run | Yrd Mat Min Robot Analysis Total . | . . . Derelict Logs Recovered . | . . . Drone Launches . | . . . Drone Recoveries . | . . . Exploration | -11 -10 -10 ------------- Run | Yrd Mat Min Turns Passed 1803 | 94 1272 437 Spaces Moved 904 | 50 614 240 Core 25 | 13 . 12 Treads 879 | 37 614 228 Legs . | . . . Wheels . | . . . Hover . | . . . Flight . | . . . Fastest Speed 50 | 50 160 50 Average Speed 156 | 131 160 154 Slowest Speed 160 | 160 160 160 Overloaded Moves . | . . . Propulsion Burnouts . | . . . Robots Hopped . | . . . Cave-ins Triggered . | . . . Exploration Rate (%) 43 | 4 90 36 Regions Visited 2 Branch Regions 1 Pre-discovered Areas . | . . . Known Exits Taken . | . . . Unknown Exits Taken 2 | 1 1 . Scrap Searched . | . . . Spaces Dug . | . . . Terrain Destroyed . | . . . Melee . | . . . Projectile . | . . . AOE . | . . . Terrain Rammed . | . . . Walls Destroyed . | . . . Machines Disabled . | . . . Actions | -11 -10 -10 --------- Run | Yrd Mat Min Total 1171 | 68 823 280 Wait 155 | 1 144 10 Move 902 | 49 613 240 Hop . | . . . Pick Up 20 | 6 9 5 Fast Attach 9 | 5 4 . Attach 5 | 2 1 2 Detach . | . . . Swap 4 | . 1 3 Drop 5 | . 1 4 Fire 59 | 4 41 14 Melee . | . . . Ram . | . . . Kick . | . . . Crush 12 | 1 9 2 Escape Stasis . | . . . Rewire . | . . . Trap . | . . . Miscellaneous . | . . . Route ------- -11/Scrapyard -10/Materials (discovered 5 exits: *Mat x3 / [*Min] / Sub) -10/Mines (discovered 2 exits: Mat / Sub) History --------- Turn | Location | Event 30 | -11/Scrapyard | Discovered new exit (range 15) 95 | -11/Scrapyard | Entered Materials 169 | -10/Materials | Discovered new exit (range 16) 224 | -10/Materials | Discovered new exit (range 14) 316 | -10/Materials | Build established: Mutant 706 | -10/Materials | Discovered new exit (range 14) 726 | -10/Materials | Central database locked down 802 | -10/Materials | Learned location of 1 exit from Storage 868 | -10/Materials | Identified exit to Subcaves 924 | -10/Materials | Loaded intel: 20 trap records 971 | -10/Materials | Learned Storage garrison access intel 999 | -10/Materials | Discovered new exit (range 15) 1040 | -10/Materials | Learned location of 1 exit from Recycling 1058 | -10/Materials | Learned Materials trap positions 1085 | -10/Materials | Learned Storage emergency access door positions 1165 | -10/Materials | Learned Storage stockpile data 1218 | -10/Materials | Learned location of 2 exits from Mines 1257 | -10/Materials | Repaired Assault Rifle 1284 | -10/Materials | Repaired Lgt. Treads 1367 | -10/Materials | Entered Mines 1368 | -10/Mines | Identified exit to Materials 1381 | -10/Mines | YI-UF0 nonchalantly dropped a Grenade Launcher on the ground 1676 | -10/Mines | Joined a pair of Derelicts in attacking an 0b10 outpost 1791 | -10/Mines | Core integrity fell below 50% 1798 | -10/Mines | Released all parts (6) 1801 | -10/Mines | Core integrity fell below 20% 1804 | -10/Mines | Destroyed by YI-UF0 with YI-UF0's Doublenader Last Messages --------------- 01743_ R-06 Scavenger collects Heat Sink. 01747_ R-06 Scavenger collects Ion Engine. 01756_ S-10 Pest destroyed. 01765_ Seismic Detector destroyed. 01775_ S-10 Pest destroyed. 01779_ Acquired 9 matter. 01782_ YI-UF0 mumbles something. 01782_ The unstable cave ceiling collapses. 01788_ Hvy. Assault Rifle destroyed. 01792_ YI-UF0 knocked back. 01794_ The unstable cave ceiling collapses. 01795_ YI-UF0 knocked back. 01798_ Lgt. Treads destroyed. 01798_ Released Heat Sink. 01798_ Released Lgt. Cannon. 01798_ Released Lrg. Storage Unit. 01798_ Released Lgt. Treads. 01798_ Released Imp. Ion Engine. 01798_ Released Assault Rifle. 01802_ The unstable cave ceiling collapses. Map ----- +----------------------------------------------------+ | ??????????????????????????????????????????# | | ?????????????????????????????????????????## | | ????????????????????????????##??????????## # | | ???????????????????????????? #?????????# #? | | ???????????????????????????? ????????## #?? | | ???????????????????????????? ?????#### ##?? | | ???????????????????????????? ????## ##??? | | ???????????????????????????? ????# ##### | | ????????????????????????????# #????# # | | ????????????????????????????# #????## ### # | | ????????????????????????????# #?????# #### ### # | | ????????????????????????????# ####### #?##% #### # | | ??????????????????????# ##### #?## %##?# # | | ??????????????????????# #########?## #??# # | | ??????????????????????####### #?????????## ##?# | | ????????????????????????????# #??????????# ##### | | ???????????????############## ########???# ##?? | | ??????????????## !## t #???## #?? | | ??????????????#"[[ # #### #### #????# ##? | | ??????????????#%!%%+ #### #???## ## | | ??????????????#[% + ## #???# """ # | | ??????????????#!!|*# ##?## """ | | ??????????????##!!## ! ### """ | | ???????????????##### [][ | | ???????????????????##### [!!= g # | | ????????????????????????#@ [*! ### | | ????????????????######### [ # ###?? | | ????????? # ##???? | | ????????????????######## ## ### #????? | | ???????????????????????##### # #?# #????? | | ???????????????????????????# ###### ##?# #??### | | ???????????????????????????###?????####??# #?## | | ?????????????????????????????????????????# ### | | ?????????????????????????????????????????# | | ?????????????????????????????????????????# | | ?????????????????????????????????????????## | | ??????????????????????????????????????????#### | | ?????????????????????????????????????????????## | | ??????????????????????????????????????????????## | | ??????????????????????????????????????????????## | | ?????????????????????????????????????????????## | | ?????????????????????????????????????????????# | | ????????????????????????????????????????????# | | ????????????????????????????????????????????# | | ????????????????????????????????????????????###### | | ?????????????????????????????????????????????????? | | ?????????????????????????????????????????????????? | | | | | | | +----------------------------------------------------+ Best States ------------- Heat Dissipation 35 Energy Generation 12 Energy Capacity 265 Matter Stores 300 Matter Capacity 300 Sight Range 16 Terrain Scan Density 10 Evasion (%) 50 Recoil Reduction 2 Item Schematics ----------------- Huge Storage Unit | -10/Materials | Hacked Robot Schematics ------------------ None Fabricated ------------ Nothing Alien Tech Used ----------------- None Achievements -------------- None Challenges ------------ None Game ------ Seed FluxImprovedMask Manual? 0 Play Time 00:13:31 Cumulative 65.5 hours Start 2024.11.28 @ 19:32:18 End 2024.11.28 @ 19:45:38 Sessions 1 Manual Loads 0 Difficulty Rogue Special Mode None Game No. 58 Rogue 58 Adventurer 0 Explorer 0 Win Type - Total 2 Types 2/0/0/0/0/0/0/0/0 Lore% 24 Gallery% 42 Achievement% 43 Wizard Run 0 Options --------- Layout 1 ASCII 0 Keyboard 0 Movement Arrows Keybinds 0 Fullscreen 1 Font 24/Smallcaps Map View 50x35 Zoom Use 0% Tactical HUD 1 Map Filters NONE Filters NONE Steam 1 RUN: f5d13825-b07e-4518-963d-40deff14df08